[Event "9th Sharjah Cup Women 2018"]
[Site "Sharjah"]
[Date "2018.12.15"]
[Round "2"]
[White "Al Ghafri, Wafia"]
[Black "Gu, Xiaobing"]
[Result "0-1"]
[ECO "A49"]
[WhiteElo "1675"]
[BlackElo "2295"]
[Annotator "NA"]
[PlyCount "72"]
[EventDate "2018.12.14"]
[EventType "swiss"]
[EventCountry "UAE"]
[SourceTitle "playchess.com"]
[Source "ChessBase"]
[SourceQuality "1"]
[TimeControl "5400+30"]

{[%evp 8,65,37,24,38,29,32767,41,44,0,36,5,20,-44,32767,-75,-71,-86,-106,-101,-14,-20,69,-74,-59,-73,32767,-82,-38,-146,-113,-140,-143,-152,-141,-149,-79,-86,-79,-80,-79,-113,32767,-111,-65,-833,-887,-845,-887,-854,-835,32767,32767,-1487,32767,-29994,32767,32767,32767,-29996]} 1. d4 {[%emt 0:00:00]} Nf6 {[%emt 0:00:00]} 2. Nf3 {[%emt 0:00:00]} g6 {[%emt 0:00:05]} 3. g3 {[%emt 0:00:07]} Bg7 {[%emt 0:00:04]} 4. Bg2 {[%emt 0:00:21]} d6 {[%emt 0:00:23]} 5. O-O {[%emt 0:00:46]} O-O {[%emt 0:00:06]} 6. c4 {[%emt 0:03:31]} Nc6 {[%emt 0:00:10]} 7. Nc3 {[%emt 0:03:04]} Rb8 {[%emt 0:00:15]} 8. e3 {[%emt 0:08:50]} a6 {[%emt 0:00:27]} 9. b3 {[%emt 0:03:22]} b5 {[%emt 0:00:38] LiveBook: 77 Games E63: King's Indian: Fianchetto: Panno Variation with 7...a6} 10. a3 $146 {[%emt 0:12:15]} ({Predecessor:} 10. Qe2 Bd7 11. Bb2 Na5 12. Nd2 Bg4 13. f3 Bd7 14. Rfd1 Re8 15. Rac1 bxc4 16. Nxc4 c6 17. e4 Bh6 18. Ne3 {½-½ (35) Ghaem Maghami,E (2523)-Jones,G (2675) Dubai 2018}) 10... bxc4 {[%emt 0:07:49]} 11. bxc4 {[%emt 0:04:33]} Na5 {[%emt 0:00:03]} 12. Qd3 {[%emt 0:01:59]} c5 {[%emt 0:02:25]} 13. Bd2 {[%emt 0:13:35]} cxd4 {[%emt 0:04:17]} (13... Bf5 $17 14. e4 Bg4) 14. Nxd4 {[%emt 0:03:18]} Nd7 {[%emt 0:01:54]} (14... Bd7 $15) 15. Rab1 $2 {[%emt 0:06:50]} (15. Nd5 $16 {is forced if you want to stay better.} Ne5 16. Bxa5 Qxa5 17. Nxe7+ Kh8 18. Nec6) 15... Ne5 {[%emt 0:01:16]} 16. Qe2 {[%emt 0:07:43]} Rxb1 {[%emt 0:01:33]} 17. Rxb1 {[%emt 0:00:30]} Nexc4 {[%emt 0:00:35]} 18. Nc2 {[%emt 0:06:37]} (18. Nd5 $15) 18... Bf5 {[%emt 0:04:11]} 19. e4 {[%emt 0:02:01] [#]} Bg4 $1 {[%emt 0:00:10]} 20. f3 {[%emt 0:01:26]} Be6 {[%emt 0:01:03]} 21. Be1 {[%emt 0:01:46]} Qc7 {[%emt 0:01:33]} (21... Bd7 $142 22. Rb4 Qa8) 22. Nd5 {[%emt 0:03:52]} Bxd5 {[%emt 0:00:20]} 23. exd5 {[%emt 0:00:27]} Qc5+ {[%emt 0:02:16]} 24. Bf2 {[%emt 0:01:36]} Qxd5 {[%emt 0:00:38]} 25. Qxe7 {[%emt 0:01:19]} Qd3 {[%emt 0:03:48]} (25... Qd2 $17 26. Ne3 Bd4) 26. Nb4 $2 {[%emt 0:02:38]} (26. Qe4 $17 Qxe4 27. fxe4) 26... Qxb1+ {[%emt 0:00:22]} 27. Qe1 {[%emt 0:01:00]} Qxe1+ {[%emt 0:00:08]} 28. Bxe1 {[%emt 0:00:14]} Re8 {[%emt 0:00:09]} 29. Kf2 {[%emt 0:00:32]} Bd4+ {[%emt 0:00:11]} 30. Kf1 {[%emt 0:00:20]} Ne3+ {[%emt 0:00:05]} 31. Kg1 {[%emt 0:00:26]} Ng4+ {[%emt 0:00:42]} 32. Kh1 {[%emt 0:00:58]} Rxe1+ {[%emt 0:00:06]} 33. Bf1 {[%emt 0:00:20]} Rxf1+ {[%emt 0:00:16]} 34. Kg2 {[%emt 0:00:10]} Rg1+ {[%emt 0:00:02]} 35. Kh3 {[%emt 0:00:11]} Nf2+ {[%emt 0:00:17]} 36. Kh4 {[%emt 0:00:19]} Bf6# {[%emt 0:00:02]} 0-1

[Event "9th Sharjah Cup Women 2018"]
[Site "Sharjah"]
[Date "2018.12.15"]
[Round "2"]
[White "Choksi, Khushi"]
[Black "Nguyen, Thi Mai Hung"]
[Result "0-1"]
[ECO "D04"]
[WhiteElo "1589"]
[BlackElo "2280"]
[Annotator "NA"]
[PlyCount "76"]
[EventDate "2018.12.14"]
[EventType "swiss"]
[EventCountry "UAE"]
[SourceTitle "playchess.com"]
[Source "ChessBase"]
[SourceQuality "1"]
[TimeControl "5400+30"]

{[%evp 9,70,1,11,12,2,32767,32767,32767,32767,-1,32767,-22,-30,-35,-38,-28,-31,-35,0,-9,-9,-26,-31,-65,-33,-180,-166,-172,-150,32767,32767,32767,-233,-220,-209,-203,-212,-264,-198,-223,-230,-222,-204,-313,-311,-397,-354,32767,-403,-373,32767,32767,32767,32767,32767,32767,32767,32767,32767,32767,32767,32767,-922]} 1. d4 {[%emt 0:00:00]} d5 {[%emt 0:00:06]} 2. Nf3 {[%emt 0:00:00]} Nf6 {[%emt 0:01:56]} 3. e3 {[%emt 0:00:05]} Bg4 {[%emt 0:00:51]} 4. c4 {[%emt 0:01:26]} e6 {[%emt 0:00:45]} 5. a3 {[%emt 0:04:08] D04: Colle System} c6 {[%emt 0:02:38]} 6. Nbd2 {[%emt 0:01:26]} (6. Nc3 Nbd7 7. h3 Bh5 8. g4 Bg6 9. Nh4 Bd6 10. Nxg6 hxg6 11. g5 Nh5 12. Rg1 dxc4 13. Bxc4 Nb6 14. Bb3 e5 {1-0 (25) Tabatabaei,M (2566)-Sibashvili,G (2412) Teheran 2017}) 6... Nbd7 {[%emt 0:00:29]} 7. h3 {[%emt 0:10:48]} Bh5 {[%emt 0:00:35]} 8. Be2 {[%emt 0:00:10]} Bd6 {[%emt 0:00:50]} 9. O-O {[%emt 0:02:48]} Ne4 $146 {[%emt 0:08:56]} ({Predecessor:} 9... Rc8 10. b3 Bb8 11. Bb2 Ne4 12. Ne5 Bxe2 13. Qxe2 Nxd2 14. Qxd2 {½-½ (39) Marton,G (2075)-Varga,T (2090) Hungary 2011}) 10. cxd5 {[%emt 0:12:53]} exd5 {[%emt 0:01:47]} 11. Nxe4 {[%emt 0:05:41]} dxe4 {[%emt 0:00:11]} 12. Nd2 {[%emt 0:00:04]} Bxe2 {[%emt 0:10:33]} 13. Qxe2 {[%emt 0:00:16]} f5 {[%emt 0:06:10]} 14. Nc4 {[%emt 0:08:06]} Bc7 {[%emt 0:01:02]} 15. Qh5+ {[%emt 0:07:59]} g6 {[%emt 0:00:57]} 16. Qh6 {[%emt 0:00:56]} Qe7 {[%emt 0:03:38]} 17. f4 {[%emt 0:03:15]} (17. Bd2 $15) 17... exf3 $1 {[%emt 0:06:18]} 18. Rxf3 {[%emt 0:00:23]} O-O-O {[%emt 0:06:18]} 19. b4 {[%emt 0:07:49]} Nf6 {[%emt 0:08:09]} 20. Qh4 {[%emt 0:03:10]} Qe6 {[%emt 0:07:29]} 21. Nd2 {[%emt 0:04:32]} Rhe8 {[%emt 0:04:54]} 22. Bb2 {[%emt 0:02:24]} Qd6 {[%emt 0:02:29]} 23. Nf1 {[%emt 0:02:08]} Re4 {[%emt 0:01:55]} 24. Qg3 {[%emt 0:01:12]} Qe6 {[%emt 0:01:36]} 25. Qf2 {[%emt 0:00:52]} Nd5 {[%emt 0:00:47]} 26. Re1 {[%emt 0:01:47] [#]} (26. Nd2 $142 Rxe3 27. Rxe3 Qxe3 28. Qxe3 Nxe3 29. Rc1) 26... f4 $1 {[%emt 0:01:21]} 27. Qd2 {[%emt 0:04:49]} Re8 {[%emt 0:00:32]} 28. Bc1 {[%emt 0:03:41]} g5 {[%emt 0:03:04]} 29. Qd3 {[%emt 0:03:59]} h5 {[%emt 0:00:29]} 30. Rf2 {[%emt 0:02:49]} g4 {[%emt 0:03:48]} 31. hxg4 {[%emt 0:01:46]} hxg4 {[%emt 0:00:23]} 32. Rfe2 {[%emt 0:01:41]} g3 {[%emt 0:06:22]} 33. Nd2 {[%emt 0:01:13]} Rxe3 {[%emt 0:00:22]} 34. Rxe3 {[%emt 0:00:17]} fxe3 {[%emt 0:00:07]} 35. Nf1 {[%emt 0:01:05]} Bf4 $19 {[%emt 0:01:22]} (35... Qf6 $142 36. Bxe3 Nxe3) 36. Qe2 {[%emt 0:02:34]} Rh8 {[%emt 0:00:56]} 37. Bxe3 {[%emt 0:00:34]} Bxe3+ {[%emt 0:00:51]} 38. Nxe3 {[%emt 0:00:13]} Rh1+ {[%emt 0:00:07]} 0-1

[Event "9th Sharjah Cup Women 2018"]
[Site "Sharjah"]
[Date "2018.12.15"]
[Round "2"]
[White "Amal Fadel S M Alshamsi"]
[Black "Enkhtuul, Altan-Ulzii"]
[Result "0-1"]
[ECO "B01"]
[WhiteElo "1520"]
[BlackElo "2267"]
[Annotator "ChessBase"]
[PlyCount "94"]
[EventDate "2018.12.14"]
[EventType "swiss"]
[EventCountry "UAE"]
[SourceTitle "playchess.com"]
[Source "ChessBase"]
[SourceQuality "1"]
[TimeControl "5400+30"]

1. e4 {[%emt 0:00:00]} d5 {[%emt 0:00:00]} 2. exd5 {[%emt 0:00:00]} Nf6 {[%emt 0:00:00]} 3. d4 {[%emt 0:02:41]} Nxd5 {[%emt 0:00:00]} 4. c4 {[%emt 0:03:04]} Nb6 {[%emt 0:00:37]} 5. Nc3 {[%emt 0:01:13]} c6 {[%emt 0:00:15]} 6. Be3 {[%emt 0:07:06]} g6 {[%emt 0:01:07]} 7. Nf3 {[%emt 0:00:58]} Bg4 {[%emt 0:00:16]} 8. h3 {[%emt 0:00:31]} Bxf3 {[%emt 0:00:10]} 9. Qxf3 {[%emt 0:00:10]} Bg7 {[%emt 0:00:03]} 10. Rd1 {[%emt 0:00:49]} O-O {[%emt 0:00:49]} 11. Be2 {[%emt 0:01:32]} Nc8 {[%emt 0:01:45]} 12. O-O {[%emt 0:01:27]} Nd7 {[%emt 0:01:05]} 13. Bf4 {[%emt 0:03:03]} Nd6 {[%emt 0:04:04]} 14. d5 {[%emt 0:09:13]} c5 {[%emt 0:00:36]} 15. a3 {[%emt 0:06:16]} Rc8 {[%emt 0:05:04]} 16. Bxd6 {[%emt 0:05:29]} exd6 {[%emt 0:00:06]} 17. Nb5 {[%emt 0:05:07]} a6 {[%emt 0:01:55]} 18. Nc3 {[%emt 0:04:19]} f5 {[%emt 0:04:28]} 19. Rfe1 {[%emt 0:00:51]} Ne5 {[%emt 0:00:17]} 20. Qf4 {[%emt 0:01:56]} Qd7 {[%emt 0:02:48]} 21. Nb1 {[%emt 0:01:45]} b5 {[%emt 0:03:47]} 22. b3 {[%emt 0:01:29]} bxc4 {[%emt 0:05:28]} 23. bxc4 {[%emt 0:00:35]} Qa4 {[%emt 0:01:44]} 24. Rc1 {[%emt 0:05:29]} Rb8 {[%emt 0:02:21]} 25. Bd1 {[%emt 0:01:57]} Qa5 {[%emt 0:00:12]} 26. Bc2 {[%emt 0:03:42]} Rb2 {[%emt 0:02:29]} 27. Re2 {[%emt 0:07:52]} Nf7 {[%emt 0:03:45]} 28. Qd2 {[%emt 0:01:35]} Qxd2 {[%emt 0:02:23]} 29. Nxd2 {[%emt 0:00:13]} Bh6 {[%emt 0:00:03]} 30. g3 {[%emt 0:02:15]} Bxd2 {[%emt 0:00:16]} 31. Rxd2 {[%emt 0:00:10]} Ne5 {[%emt 0:00:03]} 32. Re2 {[%emt 0:02:44]} Nf3+ {[%emt 0:00:58]} 33. Kg2 {[%emt 0:00:27]} Nd4 {[%emt 0:00:06]} 34. Rd2 {[%emt 0:00:34]} Nb3 {[%emt 0:00:17]} 35. Bxb3 {[%emt 0:00:47]} Rxd2 {[%emt 0:00:06]} 36. Re1 {[%emt 0:00:07]} Rb8 {[%emt 0:03:03]} 37. Re3 {[%emt 0:00:44]} Kf7 {[%emt 0:00:51]} 38. g4 {[%emt 0:00:29]} f4 {[%emt 0:00:10]} 39. Rf3 {[%emt 0:00:24]} g5 {[%emt 0:00:03]} 40. h4 {[%emt 0:00:15]} h6 {[%emt 0:00:17]} 41. hxg5 {[%emt 0:00:07]} hxg5 {[%emt 0:00:05]} 42. Ba4 {[%emt 0:00:35]} Rbb2 {[%emt 0:00:11]} 43. Bb3 {[%emt 0:00:55]} Kf6 {[%emt 0:00:08]} 44. Kf1 {[%emt 0:00:36]} Rb1+ {[%emt 0:00:32]} 45. Kg2 {[%emt 0:00:08]} Ke5 {[%emt 0:00:08]} 46. Rc3 {[%emt 0:00:27]} Kd4 {[%emt 0:00:24]} 47. Bc2 {[%emt 0:00:45]} Rb2 {[%emt 0:00:14]} 0-1

[Event "9th Sharjah Cup Women 2018"]
[Site "Sharjah"]
[Date "2018.12.15"]
[Round "2"]
[White "Al-Hammadi, Maryam Hussein"]
[Black "Abdulla, Khayala"]
[Result "0-1"]
[ECO "B40"]
[WhiteElo "1354"]
[BlackElo "2190"]
[Annotator "NA"]
[PlyCount "60"]
[EventDate "2018.12.14"]
[EventType "swiss"]
[EventCountry "UAE"]
[SourceTitle "playchess.com"]
[Source "ChessBase"]
[SourceQuality "1"]
[TimeControl "5400+30"]

1. e4 {[%emt 0:00:00]} c5 {[%emt 0:00:00]} 2. Nf3 {[%emt 0:00:00]} e6 {[%emt 0:00:50]} 3. d3 {[%emt 0:00:25]} Nc6 {[%emt 0:00:14]} 4. Nbd2 {[%emt 0:00:21]} d6 {[%emt 0:00:42]} 5. g3 {[%emt 0:00:42]} g6 {[%emt 0:00:21]} 6. Bg2 {[%emt 0:00:33]} Bg7 {[%emt 0:00:06]} 7. O-O {[%emt 0:00:21]} Nge7 {[%emt 0:00:04]} 8. c3 {[%emt 0:00:32]} O-O {[%emt 0:00:12]} 9. Nh4 {[%emt 0:02:21] LiveBook: 5 Games} b5 {[%emt 0:04:24] A04: Unusual lines after 1 Nf3 and King's Indian Attack} (9... b6 10. f4 f5 11. exf5 exf5 12. Re1 d5 13. Ndf3 Qd6 14. d4 Bb7 15. Be3 Rad8 16. Bf2 Kh8 17. dxc5 bxc5 {½-½ (25) Strikovic,A (2504)-Farago,I (2447) Helensburgh 2013}) 10. f4 {[%emt 0:02:12]} b4 {[%emt 0:06:02]} 11. Qc2 {[%emt 0:09:08]} bxc3 {[%emt 0:03:32]} 12. bxc3 {[%emt 0:00:12]} Nb4 {[%emt 0:02:10]} 13. Qb3 {[%emt 0:08:35]} Nxd3 {[%emt 0:02:28]} 14. Rb1 $146 {[%emt 0:04:34]} ({Predecessor:} 14. f5 Be5 15. Ndf3 Nxc1 16. Raxc1 Nc6 17. Nxe5 Nxe5 {1-0 (39) Stojkov,S-Arbuzov,I (1799) Rybinsk 2009}) 14... Ba6 {[%emt 0:04:09]} 15. Qa4 {[%emt 0:09:43] [#]} Qc8 $1 {[%emt 0:01:17]} ({Worse is} 15... Bxc3 16. Qxa6 Bd4+ 17. Kh1 $16) 16. Qc2 {[%emt 0:06:30]} Nxc1 {[%emt 0:01:40]} 17. Rfxc1 {[%emt 0:00:23]} d5 {[%emt 0:01:46]} 18. Kh1 {[%emt 0:10:31]} Qc7 {[%emt 0:02:13]} 19. exd5 {[%emt 0:01:32]} (19. c4 $17 {was called for.}) 19... Nxd5 {[%emt 0:02:35]} 20. Qa4 {[%emt 0:16:00]} Bd3 $19 {[%emt 0:00:43]} ({And not} 20... Nxc3 21. Qxa6 Nxb1 22. Rxb1 $11) 21. Rb3 {[%emt 0:01:56]} Rad8 {[%emt 0:00:58]} 22. Bxd5 {[%emt 0:03:04]} exd5 {[%emt 0:01:04]} 23. Nf1 {[%emt 0:01:36]} Rfe8 {[%emt 0:00:50]} 24. Rb2 {[%emt 0:00:53]} d4 {[%emt 0:01:20]} 25. cxd4 {[%emt 0:02:09]} Bxd4 {[%emt 0:00:25]} 26. Rd2 {[%emt 0:00:43]} Qb7+ {[%emt 0:01:08]} 27. Ng2 {[%emt 0:00:18]} Be4 {[%emt 0:00:14]} 28. h3 {[%emt 0:01:19]} Bxg2+ {[%emt 0:00:18]} 29. Rxg2 {[%emt 0:00:11]} Re2 {[%emt 0:00:07]} 30. Rc2 {[%emt 0:00:29]} Qxg2# {[%emt 0:00:06]} 0-1

[Event "9th Sharjah Cup Women 2018"]
[Site "Sharjah"]
[Date "2018.12.15"]
[Round "2"]
[White "Khalil, Reem"]
[Black "Mona, Khaled"]
[Result "0-1"]
[ECO "C50"]
[WhiteElo "1297"]
[BlackElo "2158"]
[Annotator "NA"]
[PlyCount "62"]
[EventDate "2018.12.14"]
[EventType "swiss"]
[EventCountry "UAE"]
[SourceTitle "playchess.com"]
[Source "ChessBase"]
[SourceQuality "1"]
[TimeControl "5400+30"]

1. e4 {[%emt 0:01:48]} e5 {[%emt 0:00:00]} 2. Nf3 {[%emt 0:00:05]} Nc6 {[%emt 0:00:00]} 3. Bc4 {[%emt 0:00:05]} Bc5 {[%emt 0:00:00]} 4. d3 {[%emt 0:00:08]} Nf6 {[%emt 0:00:00]} 5. Nbd2 {[%emt 0:00:24]} d6 {[%emt 0:00:06]} 6. c3 {[%emt 0:00:11]} Be6 {[%emt 0:00:54]} 7. Bb5 {[%emt 0:00:41]} O-O {[%emt 0:00:42]} 8. Ba4 {[%emt 0:00:17]} Ne7 {[%emt 0:00:27]} 9. O-O {[%emt 0:02:29]} Ng6 {[%emt 0:00:08]} 10. d4 {[%emt 0:09:07]} Bb6 {[%emt 0:00:38]} 11. Re1 {[%emt 0:03:02]} Qc8 {[%emt 0:05:13]} 12. Nf1 {[%emt 0:09:26]} Bg4 {[%emt 0:00:55]} 13. Ne3 {[%emt 0:31:51]} Bxf3 {[%emt 0:16:02]} ({Wrong is} 13... Nxe4 $2 14. Nxg4 Qxg4 15. h3 $18) 14. Qxf3 {[%emt 0:00:49]} exd4 {[%emt 0:00:12]} 15. Nf5 {[%emt 0:00:20]} dxc3 {[%emt 0:03:43]} 16. Nh6+ {[%emt 0:10:56]} ({White should try} 16. Re2 $15) 16... Kh8 $19 {[%emt 0:01:24]} 17. Bg5 {[%emt 0:09:49]} Qe6 {[%emt 0:04:55]} 18. Bb3 {[%emt 0:01:08]} Qe5 {[%emt 0:00:13]} 19. Bxf6 {[%emt 0:06:09]} Qxf6 {[%emt 0:00:11]} 20. Nxf7+ {[%emt 0:02:13]} Rxf7 {[%emt 0:00:11]} 21. Bxf7 {[%emt 0:00:08]} Qxf3 {[%emt 0:00:06]} 22. gxf3 {[%emt 0:00:10]} Ne5 {[%emt 0:00:04]} 23. Bh5 {[%emt 0:01:16]} g6 {[%emt 0:00:10]} 24. f4 {[%emt 0:00:26]} Nd3 {[%emt 0:00:14]} 25. Red1 {[%emt 0:01:39]} cxb2 {[%emt 0:00:25]} 26. Rab1 {[%emt 0:00:20]} Nxf2 {[%emt 0:00:06]} 27. Rd5 {[%emt 0:01:34]} Nxe4+ {[%emt 0:00:10]} 28. Kg2 {[%emt 0:01:18]} Nc3 {[%emt 0:00:07]} 29. Rd2 {[%emt 0:02:53]} Nxb1 {[%emt 0:00:16]} 30. Rxb2 {[%emt 0:00:04]} gxh5 {[%emt 0:00:08]} 31. Rxb1 {[%emt 0:00:13]} Re8 {[%emt 0:00:08]} 0-1

[Event "9th Sharjah Cup Women 2018"]
[Site "Sharjah"]
[Date "2018.12.15"]
[Round "3"]
[White "Szczepkowska, Karina"]
[Black "Stetsko, Lanita"]
[Result "1-0"]
[ECO "D39"]
[WhiteElo "2408"]
[BlackElo "2194"]
[Annotator "NA"]
[PlyCount "94"]
[EventDate "2018.12.14"]
[EventType "swiss"]
[EventCountry "UAE"]
[SourceTitle "playchess.com"]
[Source "ChessBase"]
[SourceQuality "1"]
[TimeControl "5400+30"]

1. d4 {[%emt 0:00:00]} Nf6 {[%emt 0:00:00]} 2. c4 {[%emt 0:00:05]} e6 {[%emt 0:00:00]} 3. Nf3 {[%emt 0:00:05]} d5 {[%emt 0:00:00]} 4. Bg5 {[%emt 0:01:12]} Bb4+ {[%emt 0:00:35]} 5. Nc3 {[%emt 0:00:19]} dxc4 {[%emt 0:01:14]} 6. e4 {[%emt 0:01:49]} c5 {[%emt 0:00:36]} 7. Bxc4 {[%emt 0:02:37]} cxd4 {[%emt 0:00:22]} 8. Nxd4 {[%emt 0:01:09]} Qa5 {[%emt 0:00:51]} 9. Bb5+ {[%emt 0:02:00]} Bd7 {[%emt 0:06:31]} 10. Bxf6 {[%emt 0:03:47]} gxf6 {[%emt 0:10:40]} 11. Bxd7+ {[%emt 0:01:22]} Nxd7 {[%emt 0:00:14]} 12. O-O {[%emt 0:00:37]} Rd8 {[%emt 0:41:11]} 13. Nce2 {[%emt 0:10:11]} Qe5 {[%emt 0:10:01]} 14. Qc2 {[%emt 0:06:47]} O-O {[%emt 0:04:07]} 15. Rad1 {[%emt 0:01:42]} Kh8 {[%emt 0:02:48]} 16. Nf3 {[%emt 0:08:19]} Qc5 {[%emt 0:01:42]} 17. Qb3 {[%emt 0:00:53]} Qb6 {[%emt 0:03:59]} 18. a3 {[%emt 0:02:47]} Be7 {[%emt 0:00:38]} 19. Qc2 {[%emt 0:00:45]} Ne5 {[%emt 0:01:12]} 20. Ned4 {[%emt 0:07:08]} Bc5 {[%emt 0:01:37]} 21. Nxe5 {[%emt 0:01:01]} Bxd4 {[%emt 0:03:02]} 22. Nf3 {[%emt 0:01:24]} Bc5 {[%emt 0:04:15]} 23. g3 {[%emt 0:02:16]} Be7 {[%emt 0:00:42]} 24. Kg2 {[%emt 0:01:10]} Rc8 {[%emt 0:01:36]} 25. Qe2 {[%emt 0:00:47]} Rfd8 {[%emt 0:00:20]} 26. Rxd8+ {[%emt 0:01:11]} Rxd8 {[%emt 0:00:05]} 27. Rc1 {[%emt 0:00:12]} Kg7 {[%emt 0:04:27]} 28. Qc2 {[%emt 0:01:49]} Bd6 {[%emt 0:00:18]} 29. Qe2 {[%emt 0:01:06]} Be7 {[%emt 0:00:20]} 30. Rc3 {[%emt 0:00:47]} Qa5 {[%emt 0:00:43]} 31. Qc2 {[%emt 0:01:56]} Bd6 {[%emt 0:00:16]} 32. Rc4 {[%emt 0:05:10]} a6 {[%emt 0:01:04]} 33. e5 {[%emt 0:02:53]} Bxe5 {[%emt 0:00:06]} 34. Rc5 {[%emt 0:06:28]} Qb6 {[%emt 0:00:39]} 35. Nxe5 {[%emt 0:00:10]} fxe5 {[%emt 0:00:05]} 36. Rxe5 {[%emt 0:00:04]} f6 {[%emt 0:01:08]} 37. Re4 {[%emt 0:00:59]} Rd5 {[%emt 0:00:35]} 38. Qc8 {[%emt 0:04:41]} Qc6 {[%emt 0:00:30]} 39. Qxc6 {[%emt 0:01:36]} bxc6 {[%emt 0:00:02]} 40. Rxe6 {[%emt 0:00:08]} Rc5 {[%emt 0:00:58]} 41. Kf3 {[%emt 0:03:23]} a5 {[%emt 0:00:03]} 42. Re7+ {[%emt 0:01:30]} Kg6 {[%emt 0:00:07]} 43. Re2 {[%emt 0:01:39]} h5 {[%emt 0:00:12]} 44. h3 {[%emt 0:00:47]} Rb5 {[%emt 0:01:04]} 45. Rc2 {[%emt 0:00:43]} Rb3+ {[%emt 0:00:35]} 46. Kf4 {[%emt 0:02:21]} a4 {[%emt 0:00:38]} 47. h4 {[%emt 0:00:51]} Rb5 {[%emt 0:00:31]} 1-0

[Event "9th Sharjah Cup Women 2018"]
[Site "Sharjah"]
[Date "2018.12.15"]
[Round "3"]
[White "Bulmaga, Irina"]
[Black "Soyunlu, Narmin"]
[Result "1-0"]
[ECO "A46"]
[WhiteElo "2391"]
[BlackElo "2078"]
[Annotator "NA"]
[PlyCount "89"]
[EventDate "2018.12.14"]
[EventType "swiss"]
[EventCountry "UAE"]
[SourceTitle "playchess.com"]
[Source "ChessBase"]
[SourceQuality "1"]
[TimeControl "5400+30"]

1. d4 {[%emt 0:00:00]} Nf6 {[%emt 0:00:00]} 2. Nf3 {[%emt 0:00:00]} e6 {[%emt 0:00:38]} 3. e3 {[%emt 0:00:00]} b6 {[%emt 0:01:19]} 4. Bd3 {[%emt 0:00:00]} Bb7 {[%emt 0:00:09]} 5. O-O {[%emt 0:00:26]} c5 {[%emt 0:00:30]} 6. c4 {[%emt 0:00:08]} Be7 {[%emt 0:01:04]} 7. Nc3 {[%emt 0:00:08]} O-O {[%emt 0:12:16]} 8. d5 {[%emt 0:00:37]} exd5 {[%emt 0:02:25]} 9. cxd5 {[%emt 0:03:48]} d6 {[%emt 0:03:14]} 10. e4 {[%emt 0:00:16]} Na6 {[%emt 0:02:07]} 11. Re1 {[%emt 0:01:48]} Nc7 {[%emt 0:01:37]} 12. Nd2 {[%emt 0:01:42]} a6 {[%emt 0:02:47]} 13. a4 {[%emt 0:00:04]} Rb8 {[%emt 0:00:02]} 14. f4 {[%emt 0:02:02]} Re8 {[%emt 0:06:46]} 15. b3 {[%emt 0:04:38]} Ba8 {[%emt 0:04:03]} 16. Bb2 {[%emt 0:01:06]} Bf8 {[%emt 0:02:25]} 17. Qf3 {[%emt 0:04:05]} b5 {[%emt 0:04:19]} 18. axb5 {[%emt 0:04:48]} axb5 {[%emt 0:05:03]} 19. Rad1 {[%emt 0:00:56]} Rb6 {[%emt 0:07:05]} 20. Bc2 {[%emt 0:04:55]} Qb8 {[%emt 0:03:35]} 21. Nf1 {[%emt 0:02:04]} Ra6 {[%emt 0:07:37]} 22. e5 {[%emt 0:02:44]} dxe5 {[%emt 0:03:20]} 23. fxe5 {[%emt 0:00:11]} Nfxd5 {[%emt 0:01:56]} 24. Nxd5 {[%emt 0:01:17]} Nxd5 {[%emt 0:00:03]} 25. Rxd5 {[%emt 0:01:55]} Ra2 {[%emt 0:01:37]} 26. Rb1 {[%emt 0:01:37]} Bxd5 {[%emt 0:04:26]} 27. Qxd5 {[%emt 0:00:06]} g6 {[%emt 0:01:35]} 28. Ne3 {[%emt 0:02:24]} c4 {[%emt 0:12:13]} 29. bxc4 {[%emt 0:05:10]} Rd8 {[%emt 0:00:53]} 30. Qe4 {[%emt 0:07:15]} Bc5 {[%emt 0:01:42]} 31. Kf1 {[%emt 0:06:16]} Rd2 {[%emt 0:02:55]} 32. Bc3 {[%emt 0:09:48]} Bxe3 {[%emt 0:00:18]} 33. Bxd2 {[%emt 0:00:45]} Bxd2 {[%emt 0:00:09]} 34. cxb5 {[%emt 0:07:59]} Bc3 {[%emt 0:05:13]} 35. e6 {[%emt 0:06:04]} f5 {[%emt 0:00:00]} 36. Qd3 {[%emt 0:00:59]} Qf4+ {[%emt 0:00:16]} 37. Kg1 {[%emt 0:00:47]} Bd4+ {[%emt 0:00:21]} 38. Kh1 {[%emt 0:00:02]} Be5 {[%emt 0:02:15]} 39. g3 {[%emt 0:00:40]} Qd4 {[%emt 0:00:44]} 40. Qxd4 {[%emt 0:00:27]} Bxd4 {[%emt 0:00:01]} 41. e7 {[%emt 0:05:43]} Ra8 {[%emt 0:00:01]} 42. Bb3+ {[%emt 0:00:25]} Kg7 {[%emt 0:00:09]} 43. b6 {[%emt 0:01:19]} Bc5 {[%emt 0:01:49]} 44. Re1 {[%emt 0:00:18]} Re8 {[%emt 0:00:28]} 45. b7 {[%emt 0:00:03]} 1-0

[Event "9th Sharjah Cup Women 2018"]
[Site "Sharjah"]
[Date "2018.12.15"]
[Round "3"]
[White "Gevorgyan, Irina"]
[Black "Babayan, Armine"]
[Result "1/2-1/2"]
[ECO "A05"]
[WhiteElo "2301"]
[BlackElo "2189"]
[Annotator "NA"]
[PlyCount "67"]
[EventDate "2018.12.14"]
[EventType "swiss"]
[EventCountry "UAE"]
[SourceTitle "playchess.com"]
[Source "ChessBase"]
[SourceQuality "1"]
[TimeControl "5400+30"]

1. Nf3 {[%emt 0:00:00]} Nf6 {[%emt 0:00:00]} 2. c4 {[%emt 0:00:00]} e6 {[%emt 0:00:16]} 3. Nc3 {[%emt 0:00:00]} d5 {[%emt 0:00:21]} 4. e3 {[%emt 0:01:11]} c6 {[%emt 0:00:51]} 5. b3 {[%emt 0:17:35]} Nbd7 {[%emt 0:03:17]} 6. Qc2 {[%emt 0:01:45]} Bd6 {[%emt 0:16:15]} 7. Bb2 {[%emt 0:02:05]} Rb8 {[%emt 0:12:58]} 8. d4 {[%emt 0:01:11]} Bb4 {[%emt 0:02:17]} 9. Bd3 {[%emt 0:01:29]} c5 {[%emt 0:23:06]} 10. O-O {[%emt 0:03:09]} cxd4 {[%emt 0:00:41]} 11. exd4 {[%emt 0:00:28]} O-O {[%emt 0:01:39]} 12. c5 {[%emt 0:04:45]} Re8 {[%emt 0:04:27]} 13. a3 {[%emt 0:06:32]} Bxc3 {[%emt 0:07:04]} 14. Bxc3 {[%emt 0:00:37]} Nf8 {[%emt 0:01:17]} 15. Ne5 {[%emt 0:02:25]} N6d7 {[%emt 0:01:08]} 16. f4 {[%emt 0:13:42]} f6 {[%emt 0:02:17]} 17. Nf3 {[%emt 0:06:40]} f5 {[%emt 0:01:38]} 18. Ne5 {[%emt 0:01:38]} Nf6 {[%emt 0:03:36]} 19. Bb2 {[%emt 0:05:37]} Qc7 {[%emt 0:01:26]} 20. b4 {[%emt 0:01:32]} N8d7 {[%emt 0:01:19]} 21. Rac1 {[%emt 0:02:03]} Ne4 {[%emt 0:02:32]} 22. b5 {[%emt 0:02:27]} Nxe5 {[%emt 0:01:57]} 23. dxe5 {[%emt 0:00:24]} Bd7 {[%emt 0:00:38]} 24. Bd4 {[%emt 0:04:21]} Rec8 {[%emt 0:01:52]} 25. Qb2 {[%emt 0:00:28]} Qa5 {[%emt 0:01:44]} 26. Rfd1 {[%emt 0:05:48]} a6 {[%emt 0:01:27]} 27. a4 {[%emt 0:00:28]} Ra8 {[%emt 0:01:17]} 28. Rc2 {[%emt 0:06:37]} axb5 {[%emt 0:01:11]} 29. axb5 {[%emt 0:00:06]} Qa3 {[%emt 0:01:01]} 30. Qxa3 {[%emt 0:02:27]} Rxa3 {[%emt 0:00:01]} 31. Bxe4 {[%emt 0:00:29]} fxe4 {[%emt 0:00:31]} 32. Rb2 {[%emt 0:02:53]} Rca8 {[%emt 0:01:42]} 33. Kf2 Ra2 34. Rdb1 1/2-1/2